Cogmind - Beta 13 @@@ ROGUE MODE // 2024.06.15 @ 12:46:21 Player: saltine Result: Destroyed by H-66 Slayer with Gauss Rifle Performance ------------- Evolutions (5) 2500 Regions Visited (7) 1400 Robots Destroyed (103) 515 Value Destroyed (3856) 3856 Prototype IDs (4) 80 Alien Tech Used (0) 0 Bonus (109) 109 TOTAL SCORE: 8460 Bonus ------- High Alert Combat Kills 24 Follower Combat Kills 85 Cogmind --------- Core Integrity 0/1000 Matter 53/300 Energy 100/100 System Corruption 4% Temperature Warm (125) Movement Core (50) Location -5/Extension Parts ------- > --- POWER (2) -------- (None) > --- PROPULSION (5) --- (None) > --- UTILITY (7) ------ (None) > --- WEAPON (3) ------- (None) > --- INVENTORY (5) ---- Cold Fusion Reactor Improved Melee Analysis Suite Disruptor Cannon Assault Cannon Phasing Sabre Peak State ------------ > --- POWER ------------ Improved Deuterium Engine Cold Fusion Reactor > --- PROPULSION ------- Improved Treads Improved Treads Improved Treads Armored Treads Improved Medium Treads > --- UTILITY ---------- Advanced Heat Sink High-capacity Storage Unit Advanced Sensor Array Improved Targeting Computer Layered Light Armor Plating > --- WEAPON ----------- Plasma Cannon Assault Cannon Assault Cannon > --- INVENTORY -------- Cold Fusion Reactor Micro Fission Core Wheel Armored Wheel Armored Wheel Improved Heat Sink Improved Heat Sink Triangulator Advanced Targeting Computer Armor Integrity Analyzer Hardened Light Armor Plating Improved Light Armor Plating Improved Medium Armor Plating System Shield Phase Cannon Gauss Rifle Assault Cannon Heavy Rocket Launcher Improved Datajack Heavy Mace [Rating: 57] Favorites ----------- Power Light Nuclear Core Engine Ion Engine Power Core Light Nuclear Core Reactor Cold Fusion Reactor Propulsion Improved Treads Treads Improved Treads Wheel Armored Wheel Hover Unit Antigrav System Utility High-capacity Storage Unit Device Improved Heat Sink Storage High-capacity Storage Unit Processor Improved Targeting Computer Protection Improved Light Armor Plating Weapon Assault Cannon Energy Cannon Plasma Cannon Ballistic Gun Light Assault Rifle Ballistic Cannon Assault Cannon Launcher Heavy Rocket Launcher Impact Weapon Heavy Mace Slashing Weapon Phasing Sabre Build | -11 -10 -9 -8 -7 -6 -5 -5 ------- Run | Yrd Mat Mat Mat Fac Fac Fac Ext Slots Evolved 10 | . . 2 2 2 2 2 . Power 1 | . . . . 1 . . . Propulsion 3 | . . 1 1 . 1 . . Utility 5 | . . 1 1 . 1 2 . Weapon 1 | . . . . 1 . . . Parts Attached 86 | 6 2 19 8 11 29 7 4 Power 14 | 1 . 4 1 2 5 1 . Engine 7 | 1 . 3 1 1 1 . . Core 4 | . . 1 . 1 2 . . Reactor 3 | . . . . . 2 1 . Propulsion 28 | 2 . 7 4 4 8 2 1 Treads 19 | 2 . 4 4 4 5 . . Leg . | . . . . . . . . Wheel 6 | . . 3 . . 3 . . Hover 3 | . . . . . . 2 1 Flight . | . . . . . . . . Utility 19 | 1 1 2 2 2 6 4 1 Device 6 | . . 1 1 1 2 . 1 Storage 3 | 1 1 . 1 . . . . Processor 4 | . . 1 . 1 1 1 . Hackware . | . . . . . . . . Protection 6 | . . . . . 3 3 . Artifact . | . . . . . . . . Weapon 25 | 2 1 6 1 3 10 . 2 Energy Gun . | . . . . . . . . Energy Cannon 6 | . . 3 . 2 1 . . Ballistic Gun 5 | 2 1 . . . 1 . 1 Ballistic Cannon 10 | . . 2 1 1 6 . . Launcher 2 | . . 1 . . 1 . . Special Weapon . | . . . . . . . . Impact Weapon 1 | . . . . . 1 . . Slashing Weapon 1 | . . . . . . . 1 Piercing Weapon . | . . . . . . . . Special Melee Weapon . | . . . . . . . . Unidentified Prototypes 2 | . . 1 . . 1 . . Parts Lost 46 | . . 9 . 3 21 8 5 Power 8 | . . 3 . 1 4 . . Propulsion 18 | . . 3 . 1 9 2 3 Utility 11 | . . 1 . . 4 5 1 Weapon 9 | . . 2 . 1 4 1 1 Highest Loss Streak 7 | . . 3 . 3 7 5 4 To Critical Strikes 1 | . . . . . . 1 . Average Slot Usage (%) 84 | . 85 84 90 97 91 49 14 Engine 6 | . 14 10 9 8 3 . . Core 2 | . . . . 5 3 . . Reactor 1 | . . . . . 2 4 2 Treads 24 | . 28 22 36 29 25 3 . Wheel 1 | . . 4 . . 3 . . Device 8 | . . 6 16 14 9 . 1 Storage 7 | . 14 11 9 7 6 3 . Processor 6 | . . 4 9 6 8 11 . Protection 3 | . . 2 . . 6 8 1 Energy Cannon 6 | . . 9 1 13 6 . . Ballistic Gun 4 | . 28 4 . . . 3 2 Ballistic Cannon 7 | . . 7 9 7 10 7 . Naked Turns 154 | . . . . . . 57 97 Heaviest Build 88 | 13 28 34 61 76 88 84 31 Greatest Support 119 | 40 40 69 92 91 119 30 22 Greatest Overweight (x) 25 | . . 1 . 1 7 25 2 Average Overweight (x) . | . . . . . 1 . . Largest Inventory Capacity 20 | 8 15 15 20 20 20 20 5 Average Capacity 16 | 6 12 15 16 20 20 16 5 Most Carried 20 | 4 12 15 18 20 20 17 5 Average Carried 14 | 1 7 12 15 18 18 13 3 Final Capacity 20 | 8 15 15 20 20 20 5 5 Final Carried 20 | 4 12 14 18 20 16 4 5 Class Distribution -------------------- 51% | Mutant 48% | Gunner Dominant Class ---------------- Mutant | -10/Materials Mutant | -9/Materials Mutant | -8/Materials Gunner | -7/Factory Gunner | -6/Factory Gunner | -5/Factory Mutant | -5/Extension Resources | -11 -10 -9 -8 -7 -6 -5 -5 ----------- Run | Yrd Mat Mat Mat Fac Fac Fac Ext Matter Collected 2583 | 245 165 363 458 210 906 236 . Remotely . | . . . . . . . . Salvage Created 3016 | . 268 685 498 262 964 109 230 Parts 162 | . 15 41 26 13 54 6 7 Haulers Intercepted 1 | . . 1 . . . . . Recyclers Shooed 4 | . . 3 . 1 . . . Parts Field Recycled . | . . . . . . . . Retrieved Matter . | . . . . . . . . Parts Self-Destructed . | . . . . . . . . Prevented . | . . . . . . . . Kills | -11 -10 -9 -8 -7 -6 -5 -5 ------- Run | Yrd Mat Mat Mat Fac Fac Fac Ext Combat Hostiles Destroyed 89 | . 8 23 14 6 30 4 4 Guns 11 | . 8 1 . . . . 2 Cannons 68 | . . 18 14 6 26 4 . AOE 9 | . . 4 . . 3 . 2 Classes Destroyed 13 | . 2 3 2 2 2 1 1 Worker 5 | . . . . 1 4 . . Builder 3 | . . . 1 . 2 . . Tunneler 1 | . . . . . . 1 . Hauler 1 | . . 1 . . . . . Recycler 2 | . . 1 . 1 . . . Operator 1 | . . . . . 1 . . Watcher 1 | . . . . . . . 1 Swarmer 24 | . 3 11 2 4 3 1 . Grunt 37 | . 5 7 6 . 16 . 3 Duelist 2 | . . . . 2 . . . Sentry 14 | . . 5 5 . 4 . . Hunter 5 | . . . 1 . 2 1 1 Programmer 7 | . . . . . 5 2 . Best Kill Streak 7 | . 3 5 6 4 7 2 3 Combat Bots Only 5 | . 3 4 5 3 4 2 2 Max Kills in Single Turn 4 | . 1 3 1 2 4 1 3 Gunslinging . | . . . . . . . . Exploded 3 | . . 3 . . 1 . 2 Melee . | . . . . . . . . Uniques/NPCs Destroyed . | . . . . . . . . Combat | -11 -10 -9 -8 -7 -6 -5 -5 -------- Run | Yrd Mat Mat Mat Fac Fac Fac Ext Hostile Shots Fired 889 | . 59 163 92 24 342 121 88 Missed 278 | . 23 40 30 6 109 41 29 Damage Taken 9157 | . 458 1370 865 585 3223 1644 1012 Core 1662 | . 101 143 98 38 271 368 643 Absorbed by Shields 142 | . . . . . . . 142 Redirected to Shielding 104 | . . . . . . 68 36 Core Remaining (%) 77 | 100 59 64 82 94 68 . . Volleys Fired 283 | . 32 80 45 13 90 15 8 Largest 3 | . 2 2 1 3 3 3 1 Hottest 199 | . 40 107 60 199 199 129 33 Shots Fired 551 | . 64 133 45 35 221 45 8 Gun 117 | . 64 26 . . 4 15 8 Cannon 427 | . . 104 45 35 213 30 . Launcher 7 | . . 3 . . 4 . . Special . | . . . . . . . . Kinetic 386 | . 64 80 45 13 131 45 8 Thermal 158 | . . 50 . 22 86 . . Explosive 7 | . . 3 . . 4 . . Electromagnetic . | . . . . . . . . Robot Hit Streak 20 | . 11 9 10 12 20 5 3 Robot Miss Streak 5 | . 5 5 2 4 5 3 1 Penetration Max . | . . . . . . . . Secondary Targets 2 | . 2 . . . . . . Max Gunslinging Chain 1 | . 1 . . . . . . Shots Hit Robots 357 | . 41 84 33 23 144 26 6 Core Hits 175 | . 18 33 13 18 74 9 10 Critical Kills 1 | . . . . . 1 . . Critical Parts Destroyed 2 | . 1 . . . . . 1 Critical Strikes 16 | . 1 . 7 . 7 . 1 Meltdown 1 | . . . . . 1 . . Destroy 2 | . 1 . . . . . 1 Blast 13 | . . . 7 . 6 . . Melee Attacks 1 | . . . . . 1 . . Impact 1 | . . . . . 1 . . Slashing . | . . . . . . . . Piercing . | . . . . . . . . Sneak Attacks . | . . . . . . . . Combat Hostiles . | . . . . . . . . Follow-up Attacks . | . . . . . . . . Damage Inflicted 11717 | . 432 1734 1770 698 5636 719 728 Guns 881 | . 430 119 . . 42 133 157 Cannons 8367 | . . 1402 1757 685 3974 549 . Explosions 2259 | . . 207 . . 1538 . 514 Melee . | . . . . . . . . Ramming 210 | . 2 6 13 13 82 37 57 Kinetic 6694 | . 430 871 1757 354 2443 682 157 Thermal 4265 | . . 650 . 331 2770 . 514 Explosive 548 | . . 207 . . 341 . . Electromagnetic . | . . . . . . . . Impact . | . . . . . . . . Slashing . | . . . . . . . . Piercing . | . . . . . . . . Highest Corruption 7 | . 3 2 3 . 7 3 4 Average Corruption 4 | . 2 2 2 . 5 2 3 Corruption Purged . | . . . . . . . . Corruption Blocked . | . . . . . . . . Effects 116 | . 12 6 9 . 76 5 8 Message Errors 22 | . 2 3 2 . 13 2 . Matter Fused 33 | . 1 2 1 . 22 1 6 Heat Flow Errors 11 | . 3 . 1 . 6 . 1 Energy Discharges 20 | . 1 1 3 . 14 1 . Parts Rejected 1 | . 1 . . . . . . Parts Fused 1 | . . . . . 1 . . Data Loss (minor) 19 | . 2 . 1 . 14 1 1 Data Loss (major) 5 | . 1 . 1 . 3 . . Misfires 1 | . . . . . 1 . . Alerts 1 | . 1 . . . . . . Weapon Failures 2 | . . . . . 2 . . Overload Shots . | . . . . . . . . Overflow Damage 493 | . . 52 193 . 220 3 25 Projectiles 299 | . . 52 193 . 54 . . Explosions 183 | . . . . . 158 . 25 Melee 11 | . . . . . 8 3 . Knockbacks 54 | . . 7 12 6 19 8 2 Impact 3 | . . . . . 1 . 2 Kinetic 49 | . . 7 10 6 18 8 . Secondary 2 | . . . 2 . . . . Self-Inflicted Damage 96 | . . 1 . . 51 18 26 Shots 2 | . . 1 . . 1 . . Rammed 34 | . 2 3 3 3 10 3 10 Targets Rammed 35 | . 2 3 3 3 11 3 10 Kicked . | . . . . . . . . Crushed 1 | . . . . . 1 . . Highest Temperature 416 | . 259 345 69 288 416 103 125 Average Temperature 117 | . 52 152 20 112 133 36 125 Received Heat Transfer 2411 | . 216 444 360 . 1092 57 242 Effects 11 | . 1 4 . . 6 . . Energy Bleed 1 | . . . . . 1 . . Interference 9 | . 1 4 . . 4 . . Damage (minor) 1 | . . . . . 1 . . Siege Activations . | . . . . . . . . Robots Corrupted . | . . . . . . . . Combat Hostiles . | . . . . . . . . Parts Fried . | . . . . . . . . Impact Corruptions 3 | . . . 1 . 1 1 . Robots Melted 1 | . . . . . 1 . . Combat Hostiles 1 | . . . . . 1 . . Parts Melted 8 | . . 1 . 2 5 . . Heat Transferred 5305 | . . 1184 . 572 3299 . 250 Parts Sabotaged . | . . . . . . . . Parts Stolen . | . . . . . . . . Parts Stripped . | . . . . . . . . Power Chain Reactions . | . . . . . . . . Alert | -11 -10 -9 -8 -7 -6 -5 -5 ------- Run | Yrd Mat Mat Mat Fac Fac Fac Ext Peak Influence 471 | . 120 373 381 208 471 306 415 Initial 230 | . . . 129 172 . 230 112 Average 121 | . 37 175 129 85 114 217 264 Maximum Alert Level 2 | . . 1 1 1 2 1 2 Low Security (%) 74 | 100 100 48 87 86 77 33 36 Level 1 23 | . . 51 12 13 16 66 61 Level 2 1 | . . . . . 5 . 1 Level 3 . | . . . . . . . . Level 4 . | . . . . . . . . Level 5 . | . . . . . . . . High Security . | . . . . . . . . Max Security . | . . . . . . . . Squads Dispatched 28 | . 2 1 4 3 10 3 5 Investigation 7 | . 2 . . . 3 . 2 Extermination 6 | . . . . 1 3 2 . Reinforcement 13 | . . 1 2 2 4 1 3 Assault . | . . . . . . . . Garrison 2 | . . . 2 . . . . Intercept . | . . . . . . . . Searches Triggered . | . . . . . . . . Construction Impeded 2 | . . . . . . 1 1 Haulers Reinforced 1 | . . . . . 1 . . Active Scanning Responses . | . . . . . . . . Cargo Convoy Interrupts . | . . . . . . . . Stealth | -11 -10 -9 -8 -7 -6 -5 -5 --------- Run | Yrd Mat Mat Mat Fac Fac Fac Ext Distress Signals 17 | . 3 6 6 . 1 . 1 Communications Jammed . | . . . . . . . . Distress Signals . | . . . . . . . . Times Spotted 188 | . 16 34 30 9 52 20 27 Peak Tracking Total 16 | . 5 6 6 3 5 8 16 Tactical Retreats 14 | . . 1 4 1 1 4 3 Traps | -11 -10 -9 -8 -7 -6 -5 -5 ------- Run | Yrd Mat Mat Mat Fac Fac Fac Ext Traps Triggered 14 | . 3 1 2 3 3 . 2 Indirectly . | . . . . . . . . Trap Hack Attempts . | . . . . . . . . Triggered . | . . . . . . . . Disarmed . | . . . . . . . . Reprogrammed . | . . . . . . . . Reused . | . . . . . . . . Traps Extracted . | . . . . . . . . Installed . | . . . . . . . . Triggered . | . . . . . . . . Most Traps Carried 1 | . 1 1 1 . . . . Objects Rigged 1 | . . . . . . . 1 Exploded 1 | . . . . . . . 1 Machines | -11 -10 -9 -8 -7 -6 -5 -5 ---------- Run | Yrd Mat Mat Mat Fac Fac Fac Ext Machines Disabled 16 | . . . . 1 13 . 2 Max in Single Turn 9 | . . . . 1 9 . 2 Garrison Access 1 | . . . . . 1 . . Energy Cycler 1 | . . . . . . . 1 Machines Repaired . | . . . . . . . . Machines Dismantled . | . . . . . . . . Machines Sabotaged . | . . . . . . . . Overloaded Fab Kills . | . . . . . . . . Hacking | -11 -10 -9 -8 -7 -6 -5 -5 --------- Run | Yrd Mat Mat Mat Fac Fac Fac Ext Machines Accessed 37 | . 8 7 1 4 9 3 5 Terminals 30 | . 7 6 1 4 5 3 4 Fabricators 1 | . . . . . 1 . . Repair Stations 1 | . . 1 . . . . . Recycling Units 2 | . 1 . . . . . 1 Scanalyzers . | . . . . . . . . Garrison Access 3 | . . . . . 3 . . Total Hacks 81 | . 21 14 8 8 15 4 11 Successful 30 | . 10 6 5 3 2 2 2 Failed 51 | . 11 8 3 5 13 2 9 Catastrophic 12 | . 1 3 . . 6 1 1 Database Lockouts . | . . . . . . . . Manual 33 | . 10 10 3 5 1 1 3 Terminals 70 | . 19 13 8 8 10 4 8 Fabricators 1 | . . . . . 1 . . Repair Stations 1 | . . 1 . . . . . Recycling Units 5 | . 2 . . . . . 3 Scanalyzers . | . . . . . . . . Garrison Access 4 | . . . . . 4 . . Terminal Hacks 19 | . 6 4 4 2 . 2 1 Prototype ID Bank 1 | . . . 1 . . . . Open Door 1 | . . . . . . 1 . Branch Access Points 1 | . . . . . . 1 . Emergency Access Points 1 | . . 1 . . . . . Terminal Index 4 | . 1 1 1 1 . . . Alert Level 1 | . 1 . . . . . . Unreport Threat 1 | . . 1 . . . . . Locate Traps 3 | . 1 . 1 . . . 1 Dispatch Records 1 | . 1 . . . . . . Patrol Status 1 | . 1 . . . . . . Recall Extermination 1 | . . . . 1 . . . Zone Layout 3 | . 1 1 1 . . . . Fabricator Hacks 1 | . . . . . 1 . . Network Status 1 | . . . . . 1 . . Repair Station Hacks 1 | . . 1 . . . . . Refit 1 | . . 1 . . . . . Recycling Unit Hacks 1 | . 1 . . . . . . Retrieve Components 1 | . 1 . . . . . . Scanalyzer . | . . . . . . . . Garrison Access Hacks 1 | . . . . . 1 . . Seal Access 1 | . . . . . 1 . . Unauthorized Hacks 7 | . 3 1 1 1 . . 1 Terminals 7 | . 3 1 1 1 . . 1 Assimilate 1 | . 1 . . . . . . Botnet 5 | . 2 1 1 1 . . . Detonate 1 | . . . . . . . 1 Fabricators . | . . . . . . . . Repair Stations . | . . . . . . . . Recycling Units . | . . . . . . . . Scanalyzers . | . . . . . . . . Garrison Access . | . . . . . . . . Data Cores Recovered . | . . . . . . . . Used . | . . . . . . . . Hacking Detections 28 | . 5 4 1 3 8 2 5 Full Trace Events 6 | . 1 . . . 3 . 2 Feedback Events 2 | . . . . . 1 . 1 Corruption 2 | . . . . . 1 . 1 Feedback Blocked . | . . . . . . . . Robot Schematics Acquired . | . . . . . . . . Robots Built . | . . . . . . . . Authchips . | . . . . . . . . Time . | . . . . . . . . Total Robot Build Rating . | . . . . . . . . Part Schematics Acquired . | . . . . . . . . Parts Built . | . . . . . . . . Authchips . | . . . . . . . . Time . | . . . . . . . . Total Part Build Rating . | . . . . . . . . Parts Repaired . | . . . . . . . . Time . | . . . . . . . . Parts Recycled . | . . . . . . . . Recycled Matter . | . . . . . . . . Retrieved Matter . | . . . . . . . . Retrieved Components 7 | . 7 . . . . . . Parts Scanalyzed . | . . . . . . . . Part Schematics Acquired . | . . . . . . . . Parts Damaged . | . . . . . . . . Bothacking | -11 -10 -9 -8 -7 -6 -5 -5 ------------ Run | Yrd Mat Mat Mat Fac Fac Fac Ext Used RIF Installer . | . . . . . . . . Robots Hacked . | . . . . . . . . Non-combat . | . . . . . . . . Combat . | . . . . . . . . Robot Hacks Applied . | . . . . . . . . Relay Couplers Released 3 | . . . . . 3 . . Programmers 3 | . . . . . 3 . . Fabnet Peak Effective % . | . . . . . . . . Robots Rewired 2 | . . . . . . . 2 Allies Hacked . | . . . . . . . . Hacks Repelled . | . . . . . . . . Allies | -11 -10 -9 -8 -7 -6 -5 -5 -------- Run | Yrd Mat Mat Mat Fac Fac Fac Ext Total Allies 3 | . . . . . . . 3 Largest Group 3 | . . . . . . . 3 Highest-Rated Group 215 | . . . . . . . 215 Highest-Rated Ally 159 | . . . . . . . 159 Total Orders . | . . . . . . . . Ally Attacks 12 | . . . . . . . 12 Total Damage 373 | . . . . . . . 373 Kills 2 | . . . . . . . 2 Allies Corrupted . | . . . . . . . . Allies Melted . | . . . . . . . . Intel | -11 -10 -9 -8 -7 -6 -5 -5 ------- Run | Yrd Mat Mat Mat Fac Fac Fac Ext Robot Analysis Total . | . . . . . . . . Derelict Logs Recovered . | . . . . . . . . Drone Launches . | . . . . . . . . Drone Recoveries . | . . . . . . . . Exploration | -11 -10 -9 -8 -7 -6 -5 -5 ------------- Run | Yrd Mat Mat Mat Fac Fac Fac Ext Turns Passed 7985 | 161 950 1148 1031 1213 2640 612 230 Spaces Moved 4548 | 95 529 586 545 665 1445 417 266 Core 250 | 3 . . . . . 117 130 Treads 3430 | 92 529 468 545 665 1032 99 . Legs . | . . . . . . . . Wheels 559 | . . 118 . . 413 28 . Hover 309 | . . . . . . 173 136 Flight . | . . . . . . . . Fastest Speed 50 | 50 160 90 160 161 116 50 50 Average Speed 151 | 156 160 151 161 171 156 131 63 Slowest Speed 1300 | 160 160 240 165 250 195 1300 180 Overloaded Moves . | . . . . . . . . Propulsion Burnouts . | . . . . . . . . Robots Hopped . | . . . . . . . . Cave-ins Triggered . | . . . . . . . . Exploration Rate (%) 41 | 5 86 63 47 29 42 14 43 Regions Visited 7 Branch Regions 1 Pre-discovered Areas . | . . . . . . . . Known Exits Taken 1 | . . . . . . 1 . Unknown Exits Taken 6 | 1 1 1 1 1 1 . . Scrap Searched . | . . . . . . . . Spaces Dug 1 | . . . . . 1 . . Terrain Destroyed 118 | . . 11 14 . 75 10 8 Melee 1 | . . . . . 1 . . Projectile 34 | . . 1 14 . 8 10 1 AOE 83 | . . 10 . . 66 . 7 Terrain Rammed . | . . . . . . . . Walls Destroyed . | . . . . . . . . Machines Disabled . | . . . . . . . . Actions | -11 -10 -9 -8 -7 -6 -5 -5 --------- Run | Yrd Mat Mat Mat Fac Fac Fac Ext Total 5117 | 104 573 713 629 708 1628 444 318 Wait 26 | . . 12 . . 14 . . Move 4541 | 94 528 585 544 664 1444 416 266 Hop . | . . . . . . . . Pick Up 63 | 4 8 8 13 11 16 3 . Fast Attach 36 | 6 2 7 4 5 6 3 3 Attach 39 | . . 9 1 6 18 4 1 Detach 8 | . . 3 2 1 . . 2 Swap 11 | . . 3 3 . 5 . . Drop 30 | . 1 3 14 5 7 . . Fire 283 | . 32 80 45 13 90 15 8 Melee 1 | . . . . . 1 . . Ram 16 | . . . . . 3 3 10 Kick . | . . . . . . . . Crush 19 | . 2 3 3 3 8 . . Escape Stasis 24 | . . . . . 16 . 8 Rewire 20 | . . . . . . . 20 Trap . | . . . . . . . . Miscellaneous . | . . . . . . . . Route ------- -11/Scrapyard -10/Materials (discovered 3 exits: *Mat x2 / [*Min]) -9/Materials (discovered 4 exits: *Mat x2 / [*Min x2]) -8/Materials -7/Factory -6/Factory (discovered 2 exits: *Fac / [*Low]) -5/Factory (discovered 4 exits: Upp x2 / *Ext x2) -5/Extension (discovered 1 exit: [*Fac]) History --------- Turn | Location | Event 6 | -11/Scrapyard | Discovered new exit (range 15) 162 | -11/Scrapyard | Entered Materials 315 | -10/Materials | Build established: Mutant 333 | -10/Materials | Discovered new exit (range 12) 409 | -10/Materials | Discovered new exit (range 15) 693 | -10/Materials | Discovered new exit (range 8) 762 | -10/Materials | Derelicts attacked the area 1112 | -10/Materials | Entered another Materials area 1112 | -9/Materials | Evolved 2 slots: Propulsion x1, Utility x1 1112 | -9/Materials | Discovered new exit (range 7) 1546 | -9/Materials | Discovered new exit (range 15) 1621 | -9/Materials | Lost 3 parts (1p1n1w) 1861 | -9/Materials | Discovered new exit (range 16) 2179 | -9/Materials | Discovered new exit (range 13) 2260 | -9/Materials | Entered another Materials area 2260 | -8/Materials | Evolved 2 slots: Propulsion x1, Utility x1 2741 | -8/Materials | Discovered new exit (range 19) 3184 | -8/Materials | Garrison activated, responded to threat 3291 | -8/Materials | Entered Factory 3291 | -7/Factory | Evolved 2 slots: Power x1, Weapon x1 3562 | -7/Factory | Lost 3 parts (1p1n1w) 3587 | -7/Factory | Build established: Gunner 4495 | -7/Factory | Discovered new exit (range 5) 4504 | -7/Factory | Entered another Factory area 4504 | -6/Factory | Evolved 2 slots: Propulsion x1, Utility x1 4985 | -6/Factory | Lost 7 parts (2p2n1u2w) 5507 | -6/Factory | Noticed a derelict Sapper rigging charges 5613 | -6/Factory | Discovered new exit (range 15) 6482 | -6/Factory | Lost 3 parts (3n) 6542 | -6/Factory | Discovered new exit (range 16) 6812 | -6/Factory | Lost 5 parts (1p2n1u1w) 7144 | -6/Factory | Entered another Factory area 7144 | -5/Factory | Evolved 2 slots: Utility x2 7595 | -5/Factory | Released all parts (6) 7621 | -5/Factory | Lost 5 parts (1n3u1w) 7673 | -5/Factory | Identified exit to Upper Caves 7673 | -5/Factory | Identified exit to Extension 7756 | -5/Factory | Entered Extension 7840 | -5/Extension | Build established: Mutant 7848 | -5/Extension | Core integrity fell below 50% 7870 | -5/Extension | Energy Cycler disabled 7870 | -5/Extension | Released all parts (1) 7870 | -5/Extension | Rescued a captive Derelict 7870 | -5/Extension | Rescued a captive Derelict 7871 | -5/Extension | Rescued a captive Derelict 7871 | -5/Extension | Rescued a captive Derelict 7872 | -5/Extension | Rescued a captive Derelict 7889 | -5/Extension | Rescued A7 7900 | -5/Extension | Lost 4 parts (2n1u1w) 7977 | -5/Extension | Core integrity fell below 20% 7977 | -5/Extension | Spotted B-75 Beast 7984 | -5/Extension | Spotted B-75 Beast 7985 | -5/Extension | Discovered new exit (range 15) 7986 | -5/Extension | Destroyed by H-66 Slayer with Gauss Rifle Last Messages --------------- 07975_ C-30 ARC bursts open, deploying its payload. 07975_ G-67 Veteran unfolds itself. 07975_ G-50 Soldier unfolds itself. 07976_ Slammed into H-66 Slayer. 07976_ Penetrated by Slug. 07976_ Slug penetrates Wall. 07977_ Slammed into H-66 Slayer. 07979_ Penetrated by Slug. 07980_ Slammed into H-66 Slayer. 07982_ H-66 Slayer knocked back. 07982_ Slug penetrates Wall. 07983_ Slammed into H-66 Slayer. 07983_ G-50 Soldier destroyed. 07984_ Slammed into H-66 Slayer. 07984_ Penetrated by Slug. 07985_ System corrupted: Heat flow error (+165). 07985_ Slug penetrates Y-64 Sentinel. 07985_ EXIT=FOUND 07986_ Penetrated by Slug. Map ----- +----------------------------------------------------+ | #?# #???# #####+###??#???????????????????????? | | #?# #???# ??? ???????????????????????? | | #?# #???# ^ #???? ???????????????????????? | | #?# #???#"" #???? ???????????????????????? | | ### #???#"T #???? ???????????????????????? | | #???#"" #???? ???????????????????????? | | ##### #???? ???????????????????????? | | #???# #??????????????????????? | | ####???#"#??????????????????????? | | #??????#%#??????????????????????? | | ################ #??????#g#??????????????????????? | | ???????????????# #??????# #??????????????????????? | | ???????????????# ######## #??????????????????????? | | ???????????????# # ! #=#??????????????????????? | | ???????????????# #! #%#??????????????????????? | | ???????????????# # ! /g#??????????????????????? | | ???????????????# / # #??????????????????????? | | ???????????????### # #??????????????????????? | | ?????????????????# ! # #??????????????????????? | | ?????????????????######## #??????????????????????? | | ????????????????????????# #??##??#???????????????? | | ??????????????????????### ### ## ###?????????????? | | ??????????????????????#"" "" Y "" "???????????? | | ??????????????????????# " " " " ??????????? | | ??????????????????????# hY #?????????? | | ??????????????????????# @R #?????????? | | ??????????????????????# #?????????? | | ????????????????????? ????????? | | ??????????????????? h ?????????? | | ????????????????? h ?????????? | | ??????????????? R BB ??????????? | | ????????????? Ru kR uu kttR BB ??????????? | | ????????????########### BB ??????????? | | ??????????????????????# BB ???????????? | | ??????????????????????# ???????????? | | ??????????????????????# ????????????? | | ??????????????????????# ????????????? | | ??????????????????????######T# ##??????????????? | | ????????????????????????????## < ????????????????? | | ?????????????????????????????????????????????????? | | | | | | | | | | | | | | | | | | | | | +----------------------------------------------------+ Best States ------------- Heat Dissipation 56 Energy Generation 27 Energy Capacity 390 Matter Stores 300 Matter Capacity 300 Sight Range 16 Robot Scan Range 16 Terrain Scan Density 10 Armor Coverage 525 Propulsion Shielding 66 Evasion (%) 53 Targeting Accuracy 14 Core Analysis 6 Recoil Reduction 5 Item Schematics ----------------- None Robot Schematics ------------------ None Fabricated ------------ Nothing Alien Tech Used ----------------- None Achievements -------------- None Challenges ------------ None Game ------ Seed WeldingDirtyKinecellerator Manual? 0 Play Time 01:24:55 Cumulative 38.0 hours Start 2024.06.13 @ 16:37:05 End 2024.06.15 @ 12:46:21 Sessions 4 Manual Loads 0 Difficulty Rogue Special Mode None Game No. 51 Rogue 51 Adventurer 0 Explorer 0 Win Type - Total 1 Types 1/0/0/0/0/0/0/0/0 Lore% 35 Gallery% 36 Achievement% 30 Wizard Run 0 Options --------- Layout 1 ASCII 0 Keyboard 0 Movement Arrows Keybinds 0 Fullscreen 1 Font 24/Smallcaps Map View 50x35 Zoom Use 0% Tactical HUD 1 Map Filters NONE Filters NONE Steam 1 RUN: 6814ec53-10b8-42ca-888d-444750b5fc3f